fUST/lending_fUST_20240227
["ID","MTS","AMOUNT","RATE_DAILY","PERIOD"]
[315372361,1708995038672,-500.0,0.00019178,2]
[315372362,1708995038683,-500.0,0.00019178,2]
[315372363,1708995038694,-500.54112541,0.00019178,2]
[315372364,1708995038704,-1000.0,0.00019178,2]
[315372365,1708995038717,-500.0,0.00019178,2]
[315372366,1708995038728,-500.0,0.00019178,2]
[315372367,1708995038739,-500.0,0.00019178,2]
[315372368,1708995038752,-500.0,0.00019178,2]
[315372369,1708995038763,-500.0,0.00019178,2]
[315372370,1708995038774,-500.0,0.00019178,2]
[315372371,1708995038785,-500.0,0.00019178,2]
[315372372,1708995038797,-500.0,0.00019178,2]
[315372373,1708995038808,-500.0,0.00019178,2]
[315372374,1708995038820,-500.0,0.00019178,2]
[315372375,1708995038831,-500.0,0.00019178,2]
[315372376,1708995038843,-515.24992095,0.00019178,2]
[315372377,1708995038854,-500.0,0.00019178,2]
[315372378,1708995038866,-618.09332603,0.00019178,2]
[315372379,1708995038877,-500.0,0.00019178,2]
[315372380,1708995038888,-500.0,0.00019178,2]
[315372381,1708995038900,-500.0,0.00019178,2]
[315372382,1708995038910,-500.0,0.00019178,2]
[315372383,1708995038921,-500.0,0.00019178,2]
[315372384,1708995038930,-500.0,0.00019178,2]
[315372385,1708995038939,-500.40993125,0.00019178,2]
[315372386,1708995038949,-500.0,0.00019178,2]
[315372387,1708995038958,-500.0,0.00019178,2]
[315372388,1708995039106,-500.0,0.00019178,2]
[315372389,1708995039122,-500.0,0.00019178,2]
[315372390,1708995039131,-500.0,0.00019178,2]
[315372391,1708995039140,-500.0,0.00019178,2]
[315372392,1708995039151,-500.0,0.00019178,2]
[315372393,1708995039161,-500.0,0.00019178,2]
[315372394,1708995039170,-500.0,0.00019178,2]
[315372395,1708995039182,-500.0,0.00019178,2]
[315372396,1708995039191,-500.0,0.00019178,2]
[315372397,1708995039202,-500.0,0.00019178,2]
[315372398,1708995039211,-500.0,0.00019178,2]
[315372399,1708995039221,-500.0,0.00019178,2]
[315372400,1708995039230,-500.0,0.00019178,2]
[315372401,1708995039239,-500.0,0.00019178,2]
[315372402,1708995039250,-468.27333622,0.00019178,2]
[315372403,1708995039259,-500.0,0.00019178,2]
[315372404,1708995039268,-626.77094743,0.00019178,2]
[315372405,1708995039277,-500.36421082,0.00019178,2]
[315372406,1708995039287,-500.65752268,0.00019178,2]
[315372407,1708995039296,-861.33,0.00019178,2]
[315372408,1708995039305,-861.33,0.00019178,2]
[315372409,1708995039314,-861.33,0.00019178,2]
[315372410,1708995039323,-861.33,0.00019178,2]
[315372411,1708995039332,-500.0,0.00019178,2]
[315372412,1708995039342,-500.20272728,0.00019178,2]
[315372413,1708995039351,-665.06,0.00019178,2]
[315372414,1708995039361,-395.92,0.00019178,2]
[315372415,1708995039370,-500.0,0.00019178,2]
[315372416,1708995039379,-500.0,0.00019178,2]
[315372417,1708995039388,-500.0,0.00019178,2]
[315372418,1708995039399,-500.0,0.00019178,2]
[315372419,1708995039408,-500.0,0.00019178,2]
[315372420,1708995039417,-500.0,0.00019178,2]
[315372421,1708995039427,-500.0,0.00019178,2]
[315372422,1708995039436,-500.0,0.00019178,2]
[315372423,1708995039445,-720.75,0.00019178,2]
[315372424,1708995039454,-500.0,0.00019178,2]
[315372425,1708995039463,-500.0,0.00019178,2]
[315372426,1708995039473,-500.0,0.00019178,2]
[315372427,1708995039482,-3092.23,0.00019178,2]
[315372428,1708995039491,-478.86577409,0.00019178,2]
[315372429,1708995039500,-335.54688596,0.00019178,2]
[315372430,1708995039509,-500.0,0.00019178,2]
[315372431,1708995039518,-1249.37,0.00019178,2]
[315372432,1708995039527,-500.0,0.00019178,2]
[315372433,1708995039536,-500.50769641,0.00019178,2]
[315372434,1708995039545,-500.0,0.00019178,2]
[315372435,1708995039554,-292.0474049,0.00019178,2]
[315372436,1708995039563,-232.98568571,0.00019178,2]
[315372437,1708995039573,-501.11769825,0.00019178,2]
[315372438,1708995039582,-500.0,0.00019178,2]
[315372439,1708995039591,-1957.32,0.00019178,2]
[315372440,1708995039601,-500.0,0.00019178,2]
[315372441,1708995039610,-500.0,0.00019178,2]
[315372442,1708995039619,-364.45423613,0.00019178,2]
[315372443,1708995039630,-500.0,0.00019178,2]
[315372444,1708995039642,-500.0,0.00019178,2]
[315372445,1708995039651,-500.0,0.00019178,2]
[315372446,1708995039661,-156.1005894,0.00019178,2]
[315372447,1708995039671,-614.82421978,0.00019178,2]
[315372448,1708995039681,-644.89508624,0.00019178,2]
[315372449,1708995039692,-500.0,0.00019178,2]
[315372450,1708995039701,-303.36233745,0.00019178,2]
[315372451,1708995039712,-500.0,0.00019178,2]
[315372452,1708995039721,-500.0,0.00019178,2]
[315372453,1708995039732,-500.5525622,0.00019178,2]
[315372454,1708995039741,-601.83460681,0.00019178,2]
[315372455,1708995039751,-500.0,0.00019178,2]
[315372456,1708995039761,-500.0,0.00019178,2]
[315372457,1708995039772,-500.0,0.00019178,2]
[315372458,1708995039782,-500.0,0.00019178,2]
[315372459,1708995039791,-500.0,0.00019178,2]
[315372460,1708995039801,-500.0,0.00019178,2]
[315372461,1708995039810,-500.0,0.00019178,2]
[315372462,1708995039819,-500.0,0.00019178,2]
[315372463,1708995039828,-500.0,0.00019178,2]
[315372464,1708995039838,-500.0,0.00019178,2]
[315372465,1708995039847,-500.0,0.00019178,2]
[315372466,1708995039856,-500.0,0.00019178,2]
[315372467,1708995039865,-500.0,0.00019178,2]
[315372468,1708995039875,-500.0,0.00019178,2]
[315372469,1708995039884,-500.0,0.00019178,2]
[315372470,1708995039893,-500.0,0.00019178,2]
[315372471,1708995039902,-500.0,0.00019178,2]
[315372472,1708995039912,-500.0,0.00019178,2]
[315372473,1708995039921,-500.0,0.00019178,2]
[315372474,1708995039930,-500.0,0.00019178,2]
[315372475,1708995039939,-500.0,0.00019178,2]
[315372476,1708995039949,-500.0,0.00019178,2]
[315372477,1708995039958,-500.0,0.00019178,2]
[315372478,1708995039967,-500.0,0.00019178,2]
[315372479,1708995039976,-581.87051322,0.00019178,2]
[315372480,1708995039986,-258.5246545,0.00019178,2]
[315372481,1708995039995,-500.0,0.00019178,2]
[315372482,1708995040005,-502.47764759,0.00019178,2]
[315372483,1708995040014,-500.0,0.00019178,2]
[315372484,1708995040024,-500.0,0.00019178,2]
[315372485,1708995040034,-500.0,0.00019178,2]
[315372486,1708995040043,-527.74951966,0.00019178,2]
[315372487,1708995040052,-503.11301008,0.00019178,2]
[315372488,1708995040061,-481.7489262,0.00019178,2]
[315372489,1708995040071,-501.78484159,0.00019178,2]
[315372490,1708995040080,-500.0,0.00019178,2]
[315372491,1708995040089,-500.0,0.00019178,2]
[315372492,1708995040098,-569.23170504,0.00019178,2]
[315372493,1708995040107,-500.0,0.00019178,2]
[315372494,1708995040116,-500.0,0.00019178,2]
[315372495,1708995040125,-519.20352539,0.00019178,2]
[315372496,1708995040134,-1245.83,0.00019178,2]
[315372497,1708995040143,-500.0,0.00019178,2]
[315372498,1708995040152,-500.0,0.00019178,2]
[315372499,1708995040161,-500.0,0.00019178,2]
[315372500,1708995040170,-501.41045826,0.00019178,2]
[315372501,1708995040179,-500.0,0.00019178,2]
[315372502,1708995040188,-534.77,0.00019178,2]
[315372503,1708995040198,-500.0,0.00019178,2]
[315372504,1708995040207,-451.30512983,0.00019178,2]
[315372505,1708995040216,-500.0,0.00019178,2]
[315372506,1708995040224,-500.0,0.00019178,2]
[315372507,1708995040234,-500.0,0.00019178,2]
[315372508,1708995040243,-500.0,0.00019178,2]
[315372509,1708995040252,-500.0,0.00019178,2]
[315372510,1708995040261,-500.0,0.00019178,2]
[315372511,1708995040269,-500.0,0.00019178,2]
[315372512,1708995040278,-500.0,0.00019178,2]
[315372513,1708995040287,-2134.04,0.00019178,2]
[315372514,1708995040296,-500.0,0.00019178,2]
[315372515,1708995040305,-582.28209769,0.00019178,2]
[315372516,1708995040314,-500.0,0.00019178,2]
[315372517,1708995040323,-500.0,0.00019178,2]
[315372518,1708995040332,-197.7493803,0.00019178,2]
[315372519,1708995040341,-500.0,0.00019178,2]
[315372520,1708995040350,-500.0,0.00019178,2]
[315372521,1708995040359,-451.87442518,0.00019178,2]
[315372522,1708995040368,-500.0,0.00019178,2]
[315372523,1708995040378,-500.0,0.00019178,2]
[315372524,1708995040386,-502.47770452,0.00019178,2]
[315372525,1708995040396,-501.16512852,0.00019178,2]
[315372526,1708995040405,-500.0,0.00019178,2]
[315372527,1708995040414,-500.0,0.00019178,2]
[315372528,1708995040423,-500.0,0.00019178,2]
[315372530,1708995040433,-500.0,0.00019178,2]
[315372532,1708995040442,-500.0,0.00019178,2]
[315372534,1708995040450,-500.0,0.00019178,2]
[315372536,1708995040460,-500.0,0.00019178,2]
[315372538,1708995040469,-500.0,0.00019178,2]
[315372540,1708995040478,-500.0,0.00019178,2]
[315372542,1708995040487,-500.0,0.00019178,2]
[315372544,1708995040496,-501.07626602,0.00019178,2]
[315372546,1708995040505,-500.0,0.00019178,2]
[315372548,1708995040514,-500.0,0.00019178,2]
[315372550,1708995040523,-500.0,0.00019178,2]
[315372552,1708995040532,-11020.62,0.00019178,2]
[315372554,1708995040541,-1625.24,0.00019178,2]
[315372556,1708995040549,-500.0,0.00019178,2]
[315372557,1708995040558,-500.0,0.00019178,2]
[315372558,1708995040569,-500.32473079,0.00019178,2]
[315372559,1708995040579,-500.0,0.00019178,2]
[315372560,1708995040589,-501.82744386,0.00019178,2]
[315372561,1708995040598,-1316.86,0.00019178,2]
[315372562,1708995040606,-616.16147576,0.00019178,2]
[315372563,1708995040616,-17303.09,0.00019178,2]
[315372564,1708995040627,-500.0,0.00019178,2]
[315372565,1708995040640,-432.63229669,0.00019178,2]
[315372566,1708995040649,-501.00129828,0.00019178,2]
[315372567,1708995040660,-3554.77,0.00019178,2]
[315372568,1708995040671,-598.30034209,0.00019178,2]
[315372569,1708995040684,-511.74886625,0.00019178,2]
[315372570,1708995040693,-500.0,0.00019178,2]
[315372571,1708995040703,-500.0,0.00019178,2]
[315372572,1708995040714,-500.0,0.00019178,2]
[315372573,1708995040723,-500.0,0.00019178,2]
[315372574,1708995040733,-500.0,0.00019178,2]
[315372575,1708995040742,-631.67993521,0.00019178,2]
[315372576,1708995040751,-500.0,0.00019178,2]
[315372577,1708995040761,-949.56,0.00019178,2]
[315372578,1708995040771,-500.0,0.00019178,2]
[315372579,1708995040781,-500.0,0.00019178,2]
[315372580,1708995040791,-500.0,0.00019178,2]
[315372581,1708995040801,-1300.41,0.00019178,2]
[315372582,1708995040811,-500.0,0.00019178,2]
[315372583,1708995040820,-500.0,0.00019178,2]
[315372584,1708995040829,-500.0,0.00019178,2]
[315372585,1708995040838,-2054.17,0.00019178,2]
[315372586,1708995040848,-521.26886401,0.00019178,2]
[315372587,1708995040859,-500.0,0.00019178,2]
[315372588,1708995040868,-500.0,0.00019178,2]
[315372589,1708995040878,-500.0,0.00019178,2]
[315372590,1708995040888,-1106.32,0.00019178,2]
[315372591,1708995040898,-500.0,0.00019178,2]
[315372592,1708995040908,-1573.46,0.00019178,2]
[315372593,1708995040918,-500.0,0.00019178,2]
[315372594,1708995040928,-500.0,0.00019178,2]
[315372595,1708995040938,-500.0,0.00019178,2]
[315372596,1708995040948,-500.0,0.00019178,2]
[315372597,1708995040957,-500.0,0.00019178,2]
[315372598,1708995040968,-504.14747421,0.00019178,2]
[315372599,1708995040977,-500.0,0.00019178,2]
[315372600,1708995040987,-659.55,0.00019178,2]
[315372601,1708995040997,-647.66354051,0.00019178,2]
[315372602,1708995041006,-500.0,0.00019178,2]
[315372603,1708995041016,-500.0,0.00019178,2]
[315372604,1708995041026,-500.0,0.00019178,2]
[315372605,1708995041036,-7320.56,0.00019178,2]
[315372606,1708995041045,-500.0,0.00019178,2]
[315372607,1708995041054,-500.42242112,0.00019178,2]
[315372608,1708995041064,-500.0,0.00019178,2]
[315372609,1708995041073,-500.0,0.00019178,2]
[315372610,1708995041082,-500.0,0.00019178,2]
[315372611,1708995041092,-1715.46,0.00019178,2]
[315372612,1708995041100,-268.97832651,0.00019178,2]
[315372613,1708995041110,-17851.83,0.00019178,2]
[315372614,1708995041120,-500.0,0.00019178,2]
[315372615,1708995041130,-500.0,0.00019178,2]
[315372616,1708995041139,-500.0,0.00019178,2]
[315372617,1708995041150,-500.0,0.00019178,2]
[315372618,1708995041161,-500.0,0.00019178,2]
[315372619,1708995041171,-500.0,0.00019178,2]
[315372620,1708995041180,-500.0,0.00019178,2]
[315372621,1708995041190,-500.0,0.00019178,2]
[315372622,1708995041200,-907.39,0.00019178,2]
[315372623,1708995041210,-500.14357954,0.00019178,2]
[315372624,1708995041220,-345.4447297,0.00019178,2]
[315372625,1708995041230,-500.0,0.00019178,2]
[315372626,1708995041240,-552.01,0.00019178,2]
[315372627,1708995041250,-500.0,0.00019178,2]
[315372628,1708995041259,-500.0,0.00019178,2]
[315372629,1708995041268,-500.0,0.00019178,2]
[315372630,1708995041277,-500.0,0.00019178,2]
[315372631,1708995041286,-500.0,0.00019178,2]
[315372632,1708995041296,-615.71848017,0.00019178,2]
[315372633,1708995041305,-500.0,0.00019178,2]
[315372635,1708995041315,-500.0,0.00019178,2]
[315372636,1708995041325,-504.45809868,0.00019178,2]
[315372637,1708995041334,-500.0,0.00019178,2]
[315372638,1708995041343,-500.0,0.00019178,2]
[315372639,1708995041353,-2705.82,0.00019178,2]
[315372640,1708995041362,-500.0,0.00019178,2]
[315372641,1708995041372,-500.0,0.00019178,2]
[315372642,1708995041382,-667.3,0.00019178,2]
[315372643,1708995041391,-2076.84,0.00019178,2]
[315372644,1708995041401,-500.0,0.00019178,2]
[315372645,1708995041411,-500.0,0.00019178,2]
[315372646,1708995041421,-500.0,0.00019178,2]
[315372648,1708995041431,-500.0,0.00019178,2]
[315372649,1708995041441,-500.0,0.00019178,2]
[315372650,1708995041450,-3645.04,0.00019178,2]
[315372651,1708995041459,-1905.07,0.00019178,2]
[315372652,1708995041468,-500.0,0.00019178,2]
[315372653,1708995041478,-500.0,0.00019178,2]
[315372654,1708995041487,-500.0,0.00019178,2]
[315372655,1708995041497,-500.75121153,0.00019178,2]
[315372656,1708995041506,-500.0,0.00019178,2]
[315372657,1708995041515,-2560.44,0.00019178,2]
[315372658,1708995041524,-500.0,0.00019178,2]
[315372659,1708995041537,-500.0,0.00019178,2]
[315372660,1708995041546,-500.0,0.00019178,2]
[315372661,1708995041555,-500.0,0.00019178,2]
[315372662,1708995041654,-2065.8,0.00019178,2]
[315372663,1708995041664,-500.0,0.00019178,2]
[315372664,1708995041674,-500.0,0.00019178,2]
[315372665,1708995041683,-500.0,0.00019178,2]
[315372666,1708995041692,-500.95156655,0.00019178,2]
[315372667,1708995041701,-543.31285923,0.00019178,2]
[315372668,1708995041711,-500.0,0.00019178,2]
[315372669,1708995041720,-500.0,0.00019178,2]
[315372670,1708995041729,-500.0,0.00019178,2]
[315372671,1708995041739,-500.0,0.00019178,2]
[315372672,1708995041747,-500.0,0.00019178,2]
[315372673,1708995041757,-500.0,0.00019178,2]
[315372674,1708995041766,-500.0,0.00019178,2]
[315372675,1708995041775,-2926.59,0.00019178,2]
[315372676,1708995041784,-500.0,0.00019178,2]
[315372677,1708995041793,-597.76,0.00019178,2]
[315372678,1708995041803,-500.0,0.00019178,2]
[315372679,1708995041812,-500.0,0.00019178,2]
[315372680,1708995041821,-500.0,0.00019178,2]
[315372681,1708995041830,-1863.07,0.00019178,2]
[315372682,1708995041840,-500.0,0.00019178,2]
[315372683,1708995041849,-157.981096,0.00019178,2]
[315372684,1708995041859,-168.810606,0.00019178,2]
[315372685,1708995041868,-166.666666,0.00019178,2]
[315372686,1708995041877,-743.18781309,0.0001942,2]
[315372687,1708995041886,-861.33,0.00019451,2]
[315372688,1708995041895,-861.33,0.00019451,2]
[315372689,1708995041904,-861.33,0.00019451,2]
[315372690,1708995041914,-861.33,0.00019451,2]
[315372691,1708995041923,-501.8316353,0.00019451,2]
[315372692,1708995041933,-500.0,0.00019451,2]
[315372693,1708995041942,-500.0,0.00019451,2]
[315372694,1708995041951,-500.0,0.00019451,2]
[315372695,1708995041960,-500.0,0.00019451,2]
[315372696,1708995041970,-500.0,0.00019451,2]
[315372697,1708995041979,-1519.07055314,0.00019451,2]
[315372698,1708995041989,-172.04761987,0.00019452,2]
[315372699,1708995041998,-500.0,0.00019452,2]
[315372700,1708995042007,-500.0,0.00019452,2]
[315372701,1708995042017,-500.0,0.00019452,2]
[315372702,1708995042027,-500.0,0.00019452,2]
[315372703,1708995042036,-1372.05,0.00019452,2]
[315372704,1708995042045,-829.72,0.00019452,2]
[315372705,1708995042055,-500.0,0.00019452,2]
[315372706,1708995042064,-500.0,0.00019452,2]
[315372707,1708995042074,-500.0,0.00019452,2]
[315372708,1708995042083,-500.0,0.00019452,2]
[315372709,1708995042093,-500.0,0.00019452,2]
[315372710,1708995042102,-1000.0,0.00019452,2]
[315372711,1708995042111,-500.0,0.00019452,2]
[315372712,1708995042120,-414.86935589,0.00019452,2]
[315372713,1708995042130,-500.0,0.00019452,2]
[315372714,1708995042139,-500.0,0.00019452,2]
[315372715,1708995042149,-500.0,0.00019452,2]
[315372716,1708995042158,-501.52534223,0.00019452,2]
[315372717,1708995042167,-500.0,0.00019452,2]
[315372718,1708995042177,-1000.0,0.00019452,2]
[315372719,1708995042186,-500.71978356,0.00019452,2]
[315372720,1708995042195,-500.0,0.00019452,2]
[315372721,1708995042205,-500.0,0.00019452,2]
[315372722,1708995042214,-500.0,0.00019452,2]
[315372723,1708995042223,-500.0,0.00019452,2]
[315372724,1708995042232,-500.0,0.00019452,2]
[315372725,1708995042241,-500.0,0.00019452,2]
[315372726,1708995042250,-500.0,0.00019452,2]
[315372727,1708995042259,-500.0,0.00019452,2]
[315372728,1708995042269,-500.0,0.00019452,2]
[315372729,1708995042279,-500.0,0.00019452,2]
[315372730,1708995042288,-500.0,0.00019452,2]
[315372731,1708995042297,-332.7256389,0.00019452,2]
[315372732,1708995042307,-479.17651164,0.00019452,2]
[315372733,1708995042316,-500.0,0.00019452,2]
[315372734,1708995042325,-500.0,0.00019452,2]
[315372735,1708995042335,-500.0,0.00019452,2]
[315372736,1708995042345,-500.0,0.00019452,2]
[315372737,1708995042354,-262.021544,0.00019452,2]
[315372738,1708995042364,-500.0,0.00019452,2]
[315372739,1708995042373,-500.0,0.00019452,2]
[315372740,1708995042382,-665.06,0.00019452,2]
[315372741,1708995042392,-629.55043623,0.00019452,2]
[315372742,1708995042401,-571.63134775,0.00019452,2]
[315372743,1708995042411,-500.0,0.00019452,2]
[315372744,1708995042421,-436.38596595,0.00019452,2]
[315372745,1708995042430,-500.0,0.00019452,2]
[315372746,1708995042438,-500.0,0.00019452,2]
[315372747,1708995042448,-500.829993,0.00019452,2]
[315372748,1708995042457,-500.0,0.00019452,2]
[315372749,1708995042466,-720.75,0.00019452,2]
[315372750,1708995042475,-500.0,0.00019452,2]
[315372751,1708995042484,-3092.23,0.00019452,2]
[315372752,1708995042493,-1249.37,0.00019452,2]
[315372753,1708995042502,-500.0,0.00019452,2]
[315372754,1708995042512,-500.0,0.00019452,2]
[315372755,1708995042521,-500.0,0.00019452,2]
[315372756,1708995042530,-1957.32,0.00019452,2]
[315372757,1708995042540,-432.44409481,0.00019452,2]
[315372758,1708995042549,-500.0,0.00019452,2]
[315372759,1708995042558,-501.10627301,0.00019452,2]
[315372760,1708995042567,-500.0,0.00019452,2]
[315372761,1708995042576,-418.52836242,0.00019452,2]
[315372762,1708995042586,-500.0,0.00019452,2]
[315372763,1708995042595,-500.0,0.00019452,2]
[315372764,1708995042604,-500.0,0.00019452,2]
[315372765,1708995042613,-500.0,0.00019452,2]
[315372766,1708995042622,-502.2834176,0.00019452,2]
[315372767,1708995042632,-500.0,0.00019452,2]
[315372768,1708995042644,-500.0,0.00019452,2]
[315372770,1708995042654,-500.0,0.00019452,2]
[315372771,1708995042663,-500.0,0.00019452,2]
[315372773,1708995042672,-417.97011128,0.00019452,2]
[315372775,1708995042683,-500.0,0.00019452,2]
[315372777,1708995042692,-500.0,0.00019452,2]
[315372779,1708995042701,-500.0,0.00019452,2]
[315372780,1708995042711,-500.0,0.00019452,2]
[315372783,1708995042722,-500.0,0.00019452,2]
[315372784,1708995042732,-500.0,0.00019452,2]
[315372785,1708995042741,-500.0,0.00019452,2]
[315372786,1708995042751,-500.0,0.00019452,2]
[315372787,1708995042760,-500.0,0.00019452,2]
[315372788,1708995042769,-1245.83,0.00019452,2]
[315372789,1708995042778,-502.10295356,0.00019452,2]
[315372790,1708995042788,-500.0,0.00019452,2]
[315372791,1708995042798,-500.0,0.00019452,2]
[315372792,1708995042807,-500.0,0.00019452,2]
[315372793,1708995042817,-534.77,0.00019452,2]
[315372794,1708995042826,-500.0,0.00019452,2]
[315372795,1708995042836,-500.0,0.00019452,2]
[315372796,1708995042845,-501.0634752,0.00019452,2]
[315372797,1708995042855,-2134.04,0.00019452,2]
[315372798,1708995042865,-500.0,0.00019452,2]
[315372799,1708995042876,-500.0,0.00019452,2]
[315372800,1708995042885,-500.0,0.00019452,2]
[315372801,1708995042894,-500.0,0.00019452,2]
[315372802,1708995042905,-500.0,0.00019452,2]
[315372803,1708995042915,-500.0,0.00019452,2]
[315372804,1708995042926,-500.0,0.00019452,2]
[315372805,1708995042937,-500.0,0.00019452,2]
[315372806,1708995042948,-500.0,0.00019452,2]
[315372807,1708995042959,-500.0,0.00019452,2]
[315372808,1708995042969,-405.80118565,0.00019452,2]
[315372809,1708995042980,-500.0,0.00019452,2]
[315372810,1708995042991,-500.0,0.00019452,2]
[315372811,1708995043002,-500.0,0.00019452,2]
[315372812,1708995043012,-500.0,0.00019452,2]
[315372813,1708995043022,-500.0,0.00019452,2]
[315372814,1708995043031,-500.0,0.00019452,2]
[315372815,1708995043042,-11020.62,0.00019452,2]
[315372816,1708995043051,-1625.24,0.00019452,2]
[315372817,1708995043061,-429.14374354,0.00019452,2]
[315372818,1708995043071,-500.0,0.00019452,2]
[315372819,1708995043081,-500.0,0.00019452,2]
[315372820,1708995043090,-1316.86,0.00019452,2]
[315372821,1708995043100,-17303.09,0.00019452,2]
[315372822,1708995043109,-500.0,0.00019452,2]
[315372823,1708995043119,-3554.77,0.00019452,2]
[315372824,1708995043128,-500.0,0.00019452,2]
[315372825,1708995043137,-500.0,0.00019452,2]
[315372826,1708995043148,-500.0,0.00019452,2]
[315372827,1708995043158,-500.0,0.00019452,2]
[315372828,1708995043167,-949.56,0.00019452,2]
[315372829,1708995043176,-501.25122817,0.00019452,2]
[315372830,1708995043186,-500.0,0.00019452,2]
[315372831,1708995043195,-500.0,0.00019452,2]
[315372832,1708995043205,-1300.41,0.00019452,2]
[315372833,1708995043215,-500.0,0.00019452,2]
[315372834,1708995043225,-500.0,0.00019452,2]
[315372835,1708995043234,-500.0,0.00019452,2]
[315372836,1708995043243,-2054.17,0.00019452,2]
[315372837,1708995043253,-500.0,0.00019452,2]
[315372838,1708995043262,-500.0,0.00019452,2]
[315372839,1708995043272,-1106.32,0.00019452,2]
[315372840,1708995043281,-501.23926151,0.00019452,2]
[315372841,1708995043291,-1573.46,0.00019452,2]
[315372842,1708995043299,-500.0,0.00019452,2]
[315372843,1708995043309,-500.0,0.00019452,2]
[315372844,1708995043318,-500.0,0.00019452,2]
[315372845,1708995043327,-659.55,0.00019452,2]
[315372846,1708995043337,-500.0,0.00019452,2]
[315372847,1708995043346,-500.0,0.00019452,2]
[315372848,1708995043355,-500.0,0.00019452,2]
[315372849,1708995043365,-7320.56,0.00019452,2]
[315372850,1708995043374,-500.0,0.00019452,2]
[315372851,1708995043383,-500.0,0.00019452,2]
[315372852,1708995043393,-500.0,0.00019452,2]
[315372853,1708995043403,-500.0,0.00019452,2]
[315372854,1708995043413,-1715.46,0.00019452,2]
[315372855,1708995043422,-17851.83,0.00019452,2]
[315372856,1708995043431,-500.0,0.00019452,2]
[315372857,1708995043441,-500.0,0.00019452,2]
[315372858,1708995043450,-500.0,0.00019452,2]
[315372859,1708995043459,-500.0,0.00019452,2]
[315372860,1708995043468,-502.11470017,0.00019452,2]
[315372861,1708995043477,-500.0,0.00019452,2]
[315372862,1708995043486,-500.0,0.00019452,2]
[315372863,1708995043495,-907.39,0.00019452,2]
[315372864,1708995043505,-500.0,0.00019452,2]
[315372865,1708995043514,-552.01,0.00019452,2]
[315372866,1708995043523,-500.0,0.00019452,2]
[315372867,1708995043533,-500.0,0.00019452,2]
[315372868,1708995043542,-500.0,0.00019452,2]
[315372869,1708995043551,-497.00174819,0.00019452,2]
[315372870,1708995043560,-500.0,0.00019452,2]
[315372871,1708995043569,-500.0,0.00019452,2]
[315372872,1708995043579,-500.0,0.00019452,2]
[315372873,1708995043588,-2705.82,0.00019452,2]
[315372874,1708995043598,-500.0,0.00019452,2]
[315372875,1708995043608,-500.0,0.00019452,2]
[315372876,1708995043617,-667.3,0.00019452,2]
[315372877,1708995043628,-2076.84,0.00019452,2]
[315372878,1708995043644,-500.0,0.00019452,2]
[315372879,1708995043655,-500.0,0.00019452,2]
[315372880,1708995043664,-500.0,0.00019452,2]
[315372881,1708995043673,-500.0,0.00019452,2]
[315372882,1708995043683,-3645.04,0.00019452,2]
[315372883,1708995043693,-1905.07,0.00019452,2]